bitfinex-derivatives/quotes_BTCF0:USTF0_20260214
["timestamp","ask_amount","ask_price","bid_price","bid_amount"]
[1771053149131,0.02753631,68931.0,68930.0,0.03052]
[1771053149537,0.02753631,68931.0,68930.0,0.01452]
[1771053150138,0.02753631,68931.0,68930.0,0.02952]
[1771053151436,0.02753631,68931.0,68930.0,0.01852]
[1771053151938,0.022034,68937.0,68930.0,0.01752]
[1771053152438,0.0725363,68931.0,68930.0,0.01752]
[1771053152939,0.0725363,68931.0,68930.0,0.01452]
[1771053153538,0.0725363,68931.0,68930.0,0.01852]
[1771053158834,0.0725363,68931.0,68930.0,0.01452]
[1771053159241,0.0725363,68931.0,68930.0,0.01752]
[1771053159838,0.0725363,68931.0,68930.0,0.01452]
[1771053160342,0.0725363,68931.0,68930.0,0.01852]
[1771053168237,0.0725363,68931.0,68923.0,0.014516]
[1771053168443,0.0725363,68931.0,68926.0,0.014516]
[1771053168745,0.0725363,68931.0,68924.0,0.014516]
[1771053168942,0.0725363,68931.0,68925.0,0.029036]
[1771053170147,0.0725363,68931.0,68926.0,0.014516]
[1771053170549,0.0435363,68931.0,68926.0,0.014516]
[1771053171051,0.0145363,68931.0,68926.0,0.014516]
[1771053171356,0.09952499,68934.0,68926.0,0.014516]
[1771053171648,0.05963631,68931.0,68926.0,0.014516]
[1771053180558,0.11408869,68938.0,68926.0,0.014516]
[1771053180559,0.11408869,68947.0,68939.0,0.014513]
[1771053180761,0.01452,68944.0,68936.0,0.029034]
[1771053180975,0.11408869,68945.0,68930.0,0.14516]
[1771053181263,0.07104085,68937.0,68931.0,0.029035]
[1771053181560,0.07104085,68937.0,68930.0,0.014515]
[1771053181754,0.07104085,68937.0,68931.0,0.01452]
[1771053184562,0.07104085,68937.0,68932.0,0.01452]
[1771053187168,0.08555485,68937.0,68927.0,0.014516]
[1771053187461,0.08555485,68937.0,68928.0,0.174195]
[1771053187659,0.07104085,68937.0,68928.0,0.174195]
[1771053189168,0.08555485,68937.0,68928.0,0.174195]
[1771053189660,0.07104085,68937.0,68928.0,0.174195]
[1771053196066,0.07104085,68937.0,68928.0,0.029035]
[1771053196272,0.07104085,68937.0,68929.0,0.15964]
[1771053196472,0.07104085,68937.0,68929.0,0.174155]
[1771053206074,0.08555485,68937.0,68929.0,0.15964]
[1771053206881,0.07104085,68937.0,68929.0,0.15964]
[1771053210783,0.08555485,68937.0,68929.0,0.01452]
[1771053215591,0.08555485,68937.0,68929.0,0.15964]
[1771053216094,0.10006885,68937.0,68929.0,0.15964]
[1771053216394,0.08555485,68937.0,68929.0,0.15964]
[1771053217084,0.014514,68936.0,68929.0,0.15964]
[1771053222293,0.014514,68935.0,68929.0,0.15964]
[1771053222694,0.014514,68936.0,68929.0,0.15964]
[1771053222893,0.029028,68936.0,68929.0,0.15964]
[1771053223586,0.014514,68936.0,68929.0,0.15964]
[1771053223787,0.014514,68935.0,68929.0,0.15964]
[1771053224601,0.014514,68936.0,68929.0,0.15964]
[1771053225598,0.014514,68936.0,68926.0,0.18355472]
[1771053225798,0.014514,68936.0,68927.0,0.01452]
[1771053226097,0.014514,68935.0,68927.0,0.01452]
[1771053226498,0.015514,68935.0,68927.0,0.01452]
[1771053226899,0.014514,68935.0,68927.0,0.01452]
[1771053227596,0.07104085,68937.0,68927.0,0.01452]
[1771053227900,0.014515,68931.0,68928.0,0.01452]
[1771053228100,0.014515,68931.0,68925.0,0.32017143]
[1771053228302,0.001,68936.0,68920.0,0.1664819]
[1771053228303,0.014515,68929.0,68920.0,0.1664819]
[1771053228600,0.014515,68928.0,68921.0,0.14512]
[1771053228795,0.014515,68928.0,68922.0,0.01452]
[1771053229096,0.014516,68928.0,68922.0,0.01452]
[1771053229301,0.014516,68928.0,68918.0,0.3348313]
[1771053229797,0.014516,68928.0,68919.0,0.01452]
[1771053231204,0.016516,68928.0,68919.0,0.01452]
[1771053231898,0.014516,68927.0,68919.0,0.01452]
[1771053232106,0.014516,68927.0,68920.0,0.00533503]
[1771053233403,0.015516,68927.0,68920.0,0.00533503]
[1771053233598,0.001,68927.0,68920.0,0.00533503]
[1771053234609,0.014515,68928.0,68920.0,0.00633503]
[1771053236208,0.014515,68928.0,68920.0,0.00533503]
[1771053236399,0.014516,68927.0,68920.0,0.00633503]
[1771053236802,0.014516,68927.0,68920.0,0.18582103]
[1771053237406,0.014516,68927.0,68920.0,0.18482103]
[1771053241109,0.08555685,68927.0,68920.0,0.18482103]
[1771053245811,0.08555685,68927.0,68920.0,0.00533503]
[1771053246315,0.014516,68926.0,68920.0,0.00533503]
[1771053246516,0.08555685,68927.0,68920.0,0.00533503]
[1771053249316,0.07104085,68927.0,68920.0,0.00533503]
[1771053251319,0.08555685,68927.0,68920.0,0.00533503]
[1771053252725,0.07104085,68927.0,68920.0,0.00533503]
[1771053259325,0.08555685,68927.0,68920.0,0.00533503]
[1771053260533,0.07104085,68927.0,68920.0,0.00533503]
[1771053260729,0.08555685,68927.0,68920.0,0.00533503]
[1771053261534,0.014516,68926.0,68920.0,0.00533503]
[1771053262634,0.014516,68926.0,68920.0,0.00633503]
[1771053265231,0.014516,68926.0,68920.0,0.00533503]
[1771053265535,0.003,68926.0,68920.0,0.00533503]
[1771053275445,0.017516,68926.0,68920.0,0.00533503]
[1771053276343,0.014516,68926.0,68920.0,0.00533503]
[1771053276650,0.014516,68925.0,68920.0,0.00533503]
[1771053276945,0.017516,68926.0,68920.0,0.00533503]
[1771053278049,0.014516,68923.0,68917.0,0.45999745]
[1771053278249,0.014516,68923.0,68918.0,0.01452]
[1771053280855,0.014516,68923.0,68918.0,0.01752]
[1771053281750,0.029033,68923.0,68919.0,0.01452]
[1771053282052,0.014516,68923.0,68919.0,0.01452]
[1771053282448,0.014517,68922.0,68919.0,0.01452]
[1771053285252,0.014517,68922.0,68919.0,0.01752]
[1771053287057,0.014517,68922.0,68918.0,0.01452]
[1771053287956,0.014517,68922.0,68916.0,0.01452]
[1771053288152,0.014517,68922.0,68918.0,0.003]
[1771053289557,0.014517,68921.0,68918.0,0.003]
[1771053290759,0.014517,68922.0,68916.0,0.01452]
[1771053291759,0.015517,68922.0,68916.0,0.01452]
[1771053291955,0.001,68921.0,68916.0,0.01452]
[1771053294358,0.014517,68922.0,68916.0,0.01452]
[1771053295361,0.003,68921.0,68916.0,0.01452]
[1771053296361,0.003,68922.0,68916.0,0.01452]
[1771053297862,0.014517,68923.0,68916.0,0.01452]
[1771053298764,0.003,68921.0,68916.0,0.01452]
[1771053299161,0.014517,68922.0,68915.0,0.01452]
[1771053299365,0.018517,68923.0,68915.0,0.01452]
[1771053299659,0.033034,68923.0,68915.0,0.01452]
[1771053299863,0.014517,68922.0,68915.0,0.01452]
[1771053300257,0.014517,68921.0,68915.0,0.01452]
[1771053300454,0.014517,68922.0,68915.0,0.01452]
[1771053300967,0.004,68923.0,68915.0,0.01452]
[1771053301265,0.018517,68923.0,68915.0,0.01452]
[1771053301465,0.014517,68922.0,68915.0,0.01452]
[1771053301769,0.014517,68921.0,68915.0,0.01452]
[1771053302666,0.018517,68923.0,68915.0,0.01452]
[1771053302967,0.014517,68922.0,68915.0,0.01452]
[1771053303466,0.018516,68923.0,68915.0,0.01452]
[1771053303868,0.017517,68922.0,68915.0,0.01452]
[1771053304260,0.003,68922.0,68915.0,0.01452]
[1771053305770,0.014517,68922.0,68915.0,0.01452]
[1771053306069,0.003,68921.0,68915.0,0.01452]
[1771053306573,0.017517,68922.0,68915.0,0.01452]
[1771053307571,0.003,68921.0,68915.0,0.01452]
[1771053308971,0.014517,68922.0,68915.0,0.01452]
[1771053309173,0.003,68922.0,68915.0,0.01452]
[1771053309573,0.014517,68923.0,68915.0,0.01452]
[1771053309872,0.005,68921.0,68915.0,0.01452]
[1771053310172,0.014517,68923.0,68915.0,0.01452]
[1771053310471,0.003,68922.0,68915.0,0.01452]
[1771053310970,0.014517,68923.0,68915.0,0.01452]
[1771053311170,0.014517,68922.0,68915.0,0.01452]
[1771053314073,0.029034,68922.0,68915.0,0.01452]
[1771053314269,0.014517,68921.0,68915.0,0.01452]
[1771053314475,0.014517,68920.0,68915.0,0.01452]
[1771053314776,0.014517,68921.0,68915.0,0.01452]
[1771053316062,0.029034,68921.0,68915.0,0.01452]
[1771053316375,0.014517,68921.0,68915.0,0.01452]
[1771053317076,0.017517,68921.0,68915.0,0.01452]
[1771053319575,0.019517,68921.0,68915.0,0.01452]
[1771053321076,0.005,68921.0,68915.0,0.01452]
[1771053321275,0.005,68921.0,68910.0,0.19929468]
[1771053321276,0.019517,68921.0,68910.0,0.19929468]
[1771053321471,0.019517,68921.0,68911.0,0.01452]
[1771053321776,0.014518,68918.0,68911.0,0.01452]
[1771053323471,0.015518,68918.0,68911.0,0.01452]
[1771053324584,0.001,68918.0,68911.0,0.01452]
[1771053327880,0.014518,68917.0,68909.0,0.01452]
[1771053328079,0.014518,68914.0,68909.0,0.01452]
[1771053328380,0.014518,68915.0,68909.0,0.01452]
[1771053330689,0.014518,68914.0,68909.0,0.01452]
[1771053331182,0.014518,68915.0,68909.0,0.01452]
[1771053332782,0.014518,68915.0,68907.0,0.01452]
[1771053334079,0.029038,68916.0,68907.0,0.01552]
[1771053334276,0.014518,68915.0,68907.0,0.01552]
[1771053335479,0.07104085,68919.0,68909.0,0.014519]
[1771053335685,0.01452,68918.0,68910.0,0.09906283]
[1771053335885,0.01452,68917.0,68910.0,0.09906283]
[1771053336479,0.01452,68916.0,68910.0,0.09906283]
[1771053336684,0.014517,68918.0,68910.0,0.09906283]
[1771053336878,0.01452,68917.0,68910.0,0.09906283]
[1771053338482,0.01752,68917.0,68910.0,0.09906283]
[1771053339380,0.032038,68917.0,68907.0,0.12952872]
[1771053339581,0.031038,68917.0,68907.0,0.11500872]
[1771053339781,0.032038,68917.0,68907.0,0.11500872]
[1771053340081,0.014518,68916.0,68907.0,0.11500872]
[1771053340481,0.032038,68917.0,68907.0,0.11500872]
[1771053340887,0.014518,68915.0,68907.0,0.11500872]
[1771053342291,7.785e-05,68919.0,68908.0,0.10048872]
[1771053342684,0.014517,68919.0,68908.0,0.10048872]
[1771053342885,0.07256947,68917.0,68908.0,0.10048872]
[1771053343090,0.07256947,68917.0,68908.0,0.11500772]
[1771053344390,0.07256947,68917.0,68907.0,0.02904]
[1771053344391,0.07256947,68917.0,68910.0,0.11500772]
[1771053344689,0.07256947,68917.0,68911.0,0.11500872]
[1771053345489,0.07456947,68917.0,68911.0,0.11500872]
[1771053345883,0.014516,68925.0,68915.0,0.014518]
[1771053345884,0.01452,68921.0,68915.0,0.014518]
[1771053346077,0.01452,68923.0,68915.0,0.029038]
[1771053346385,0.01452,68923.0,68915.0,0.01452]
[1771053346386,0.01155104,68917.0,68915.0,0.01452]
[1771053346690,0.01452,68923.0,68915.0,0.01452]
[1771053347189,0.01452,68923.0,68915.0,0.029038]
[1771053347385,0.103227,68929.0,68915.0,0.029038]
[1771053347690,0.088712,68929.0,68917.0,0.11500672]
[1771053347881,0.017747,68929.0,68920.0,0.014517]
[1771053348287,0.01452,68928.0,68920.0,0.014517]
[1771053348587,0.06533225,68921.0,68920.0,0.014517]
[1771053348889,0.01452,68927.0,68920.0,0.014517]
[1771053349184,0.014515,68931.0,68920.0,0.014517]
[1771053349391,0.07254472,68923.0,68920.0,0.016517]
[1771053349691,0.01150736,68923.0,68920.0,0.016517]
[1771053350593,0.01150736,68923.0,68920.0,0.017517]
[1771053350794,0.01150736,68923.0,68920.0,0.003]
[1771053351692,0.01150736,68923.0,68920.0,0.005]
[1771053352094,0.014517,68920.0,68917.0,0.01452]
[1771053352294,0.014517,68921.0,68917.0,0.01452]
[1771053352784,0.01150736,68923.0,68920.0,0.014517]
[1771053352987,0.01150736,68923.0,68917.0,0.01452]
[1771053352988,0.16446233,68932.0,68921.0,0.01452]
[1771053353195,0.01452,68931.0,68921.0,0.01452]
[1771053353402,0.014515,68929.0,68921.0,0.01452]
[1771053353593,0.07254367,68924.0,68921.0,0.01452]
[1771053353895,0.06167367,68924.0,68921.0,0.01452]
[1771053354095,0.02124367,68924.0,68921.0,0.01452]
[1771053354603,0.01464467,68931.0,68921.0,0.01452]
[1771053354899,0.002,68923.0,68921.0,0.01452]
[1771053355294,0.07254367,68924.0,68921.0,0.01452]
[1771053355501,0.07254367,68924.0,68921.0,0.01552]
[1771053356002,0.07254367,68924.0,68921.0,0.01452]
[1771053356903,0.07254367,68924.0,68921.0,0.01652]
[1771053357603,0.07254367,68924.0,68921.0,0.01452]
[1771053358404,0.07654367,68924.0,68921.0,0.01452]
[1771053359705,0.08054367,68924.0,68921.0,0.01452]
[1771053360209,0.08054367,68924.0,68921.0,0.029037]
[1771053360598,0.08054367,68924.0,68921.0,0.01452]
[1771053361208,0.08054367,68924.0,68922.0,0.01452]
[1771053361508,0.07254367,68924.0,68916.0,0.014518]
[1771053362203,0.029035,68931.0,68918.0,0.014517]
[1771053362411,0.07954367,68924.0,68920.0,0.014517]
[1771053362610,0.03598363,68924.0,68921.0,0.01452]
[1771053362804,0.03998363,68924.0,68921.0,0.01452]
[1771053364211,0.03598363,68924.0,68921.0,0.01452]
[1771053364612,0.03598363,68924.0,68921.0,0.029037]
[1771053364813,0.03151462,68947.0,68931.0,0.014515]
[1771053365017,0.014513,68942.0,68931.0,0.014515]
[1771053365212,0.01452,68941.0,68931.0,0.014515]
[1771053365419,0.07252994,68937.0,68931.0,0.014515]
[1771053365818,0.07252994,68937.0,68930.0,0.029035]
[1771053366117,0.07252994,68937.0,68930.0,0.01452]
[1771053367821,0.07652994,68937.0,68930.0,0.01452]
[1771053368221,0.07652994,68937.0,68930.0,0.029035]
[1771053368821,0.07452994,68937.0,68930.0,0.029035]
[1771053369016,0.07452994,68937.0,68930.0,0.01452]
[1771053369214,0.07452994,68937.0,68930.0,0.029035]
[1771053369415,0.07452994,68937.0,68930.0,0.01452]
[1771053370122,0.07452994,68937.0,68935.0,0.014514]
[1771053370317,0.07452994,68937.0,68934.0,0.014514]
[1771053370522,0.07452994,68937.0,68933.0,0.014514]
[1771053370713,0.07752994,68937.0,68933.0,0.014514]
[1771053371317,0.07252994,68937.0,68933.0,0.014514]
[1771053372423,0.07852994,68937.0,68933.0,0.014514]
[1771053373524,0.07852994,68937.0,68932.0,0.014514]
[1771053373720,0.07852994,68937.0,68931.0,0.014515]
[1771053374324,0.07852994,68937.0,68931.0,0.02903]
[1771053374519,0.07252994,68937.0,68932.0,0.014515]
[1771053374825,0.07652994,68937.0,68933.0,0.01452]
[1771053375328,0.07452994,68937.0,68933.0,0.01452]
[1771053375627,0.07252994,68937.0,68933.0,0.01452]
[1771053375925,0.07452994,68937.0,68933.0,0.01452]
[1771053376314,0.07452994,68937.0,68933.0,0.029034]
[1771053377525,0.07452994,68937.0,68933.0,0.043548]
[1771053377826,0.07552994,68937.0,68934.0,0.014514]
[1771053378223,3.8e-07,68947.0,68946.0,0.014512]
[1771053378525,0.14516,68948.0,68943.0,0.014512]
[1771053378526,0.04516,68948.0,68943.0,0.014512]
[1771053378723,0.03219753,68949.0,68941.0,0.014513]
[1771053378915,0.03219753,68949.0,68940.0,0.029033]
[1771053379321,0.03219753,68949.0,68941.0,0.014512]
[1771053380226,0.03219753,68949.0,68940.0,0.029033]
[1771053381528,0.03219753,68949.0,68946.0,0.001]
[1771053383128,0.03219753,68949.0,68930.0,0.014515]
[1771053383129,0.014513,68941.0,68930.0,0.014515]
[1771053383331,0.014513,68941.0,68931.0,0.174155]
[1771053383531,0.10249062,68940.0,68931.0,0.174155]
[1771053383926,0.014513,68941.0,68931.0,0.174155]
[1771053384535,0.014513,68941.0,68931.0,0.176155]
[1771053384731,0.03219753,68940.0,68931.0,0.176155]
[1771053384934,0.03219753,68940.0,68930.0,0.015515]
[1771053385229,0.03219753,68940.0,68929.0,0.14512]
[1771053385434,0.10249062,68939.0,68930.0,0.014515]
[1771053385931,0.11700362,68939.0,68931.0,0.01452]
[1771053386133,0.014513,68938.0,68929.0,0.14512]
[1771053386332,0.014513,68938.0,68930.0,0.01452]
[1771053386537,0.03219753,68940.0,68931.0,0.029035]
[1771053387639,0.04671053,68940.0,68931.0,0.01452]
[1771053387935,0.04871053,68940.0,68931.0,0.01452]
[1771053388526,0.014513,68939.0,68931.0,0.01452]
[1771053388734,0.014513,68939.0,68932.0,0.01452]
[1771053390434,0.015513,68939.0,68932.0,0.01452]
[1771053390835,0.04671053,68940.0,68932.0,0.01452]
[1771053391036,0.003,68939.0,68932.0,0.01452]
[1771053391338,0.10759098,68939.0,68932.0,0.01452]
[1771053392241,0.12210398,68939.0,68932.0,0.01452]
[1771053392440,0.11910398,68939.0,68932.0,0.01452]
[1771053392641,0.014513,68939.0,68932.0,0.01452]
[1771053393644,0.014513,68938.0,68932.0,0.01452]
[1771053394143,0.014513,68938.0,68931.0,0.01452]
[1771053394744,1e-05,68941.0,68935.0,0.014514]
[1771053394946,0.07253387,68937.0,68935.0,0.014514]
[1771053395243,0.14512,68947.0,68941.0,0.014513]
[1771053395442,0.0725199,68946.0,68943.0,0.014512]
[1771053395643,0.02903,68952.0,68943.0,0.014512]
[1771053395841,0.014511,68951.0,68942.0,0.014512]
[1771053396045,0.00154704,68952.0,68941.0,0.014513]
[1771053396245,0.07251527,68951.0,68941.0,0.014513]
[1771053396547,0.10459098,68949.0,68941.0,0.014513]
[1771053396749,0.014513,68942.0,68936.0,0.01452]
[1771053396950,0.08702727,68942.0,68936.0,0.01452]
[1771053397659,0.014513,68941.0,68936.0,0.01452]
[1771053399351,0.08702727,68942.0,68932.0,0.014515]
[1771053399849,0.08702727,68942.0,68933.0,0.01452]
[1771053399850,0.11124871,68939.0,68933.0,0.01452]
[1771053400150,0.14028171,68939.0,68930.0,0.01452]
[1771053400349,0.07251527,68934.0,68930.0,0.01452]
[1771053401149,0.07251527,68934.0,68932.0,0.003]
[1771053401342,0.07251527,68934.0,68930.0,0.01452]
[1771053401541,0.07251527,68934.0,68929.0,0.01452]
[1771053402048,0.07251527,68934.0,68928.0,0.159635]
[1771053402351,0.07251527,68934.0,68929.0,0.014515]
[1771053402549,0.07251527,68934.0,68930.0,0.014515]
[1771053403155,0.01452,68939.0,68932.0,0.014514]
[1771053403354,0.07255025,68934.0,68932.0,0.014514]
[1771053404250,0.01452,68939.0,68932.0,0.014514]
[1771053404447,0.01452,68939.0,68931.0,0.014515]
[1771053404750,0.07253314,68934.0,68931.0,0.014515]
[1771053404949,0.07253314,68934.0,68932.0,0.002]
[1771053406357,0.07253314,68934.0,68931.0,0.014515]
[1771053407861,0.07253314,68934.0,68931.0,0.015515]
[1771053409559,0.07253314,68934.0,68931.0,0.014515]
[1771053409756,0.01452,68937.0,68931.0,0.014515]
[1771053409957,0.07253315,68934.0,68931.0,0.014515]
[1771053410261,0.01452,68938.0,68931.0,0.014515]
[1771053410654,0.07253315,68934.0,68931.0,0.014515]
[1771053410950,0.14512,68943.0,68929.0,0.01452]
[1771053411258,0.01452,68942.0,68929.0,0.029035]
[1771053411457,0.072533,68935.0,68931.0,0.014515]
[1771053411762,0.026653,68935.0,68932.0,0.014515]
[1771053414060,0.026653,68935.0,68931.0,0.014515]
[1771053414462,0.028653,68935.0,68931.0,0.014515]
[1771053414957,0.030653,68935.0,68931.0,0.014515]
[1771053415961,0.030653,68935.0,68930.0,0.01452]
[1771053416153,0.027653,68935.0,68930.0,0.01452]
[1771053416663,0.026653,68935.0,68930.0,0.01452]
[1771053416964,0.028653,68935.0,68930.0,0.01452]
[1771053417162,0.026653,68935.0,68930.0,0.01452]
[1771053417963,0.027653,68935.0,68930.0,0.01452]
[1771053420455,0.11124871,68931.0,68917.0,0.14512]
[1771053420656,0.014515,68930.0,68919.0,0.014517]
[1771053420855,0.014515,68929.0,68919.0,0.014517]
[1771053421066,0.12109696,68929.0,68918.0,0.01452]
[1771053421263,0.10658196,68926.0,68919.0,0.01452]
[1771053421458,0.10658196,68926.0,68917.0,0.11620448]
[1771053421459,0.10658196,68926.0,68920.0,0.01452]
[1771053421665,0.026653,68924.0,68915.0,0.23228391]
[1771053422164,0.026653,68924.0,68915.0,0.014518]
[1771053422470,0.026653,68924.0,68916.0,0.029038]
[1771053423268,0.026653,68924.0,68917.0,0.014518]
[1771053423458,0.10658196,68926.0,68917.0,0.014518]
[1771053423658,0.07254743,68924.0,68917.0,0.014518]
[1771053425067,0.07454743,68924.0,68917.0,0.014518]
[1771053426165,0.07254743,68924.0,68917.0,0.014518]
[1771053426367,0.07354743,68924.0,68917.0,0.014518]
[1771053426863,0.07254743,68924.0,68917.0,0.014518]
[1771053429463,0.07254743,68924.0,68917.0,0.018518]
[1771053430467,0.07254743,68924.0,68918.0,0.014517]
[1771053431260,0.07254743,68924.0,68917.0,0.004]
[1771053431773,0.07254743,68924.0,68918.0,0.014517]
[1771053432568,0.07254743,68924.0,68918.0,0.018517]
[1771053433469,0.07254743,68924.0,68918.0,0.004]
[1771053434269,0.07254743,68924.0,68918.0,0.018517]
[1771053436470,0.07254743,68924.0,68918.0,0.047554]
[1771053436664,0.07254743,68924.0,68918.0,0.033037]
[1771053436863,0.01452,68928.0,68919.0,0.014517]
[1771053437059,0.01452,68927.0,68919.0,0.014517]
[1771053437263,0.01452,68926.0,68922.0,0.029032]
[1771053437459,0.01452,68928.0,68922.0,0.029032]
[1771053437671,0.01452,68928.0,68923.0,0.014516]
[1771053437969,0.029028,68933.0,68923.0,0.014516]
[1771053437970,0.10658196,68933.0,68923.0,0.014516]
[1771053438174,0.01452,68932.0,68921.0,0.029037]
[1771053438363,0.01452,68932.0,68923.0,0.014516]
[1771053438565,0.06823798,68924.0,68923.0,0.014516]
[1771053438766,0.01452,68928.0,68923.0,0.014516]
[1771053438961,0.01452,68928.0,68921.0,0.029037]
[1771053438962,0.01452,68928.0,68925.0,0.014516]
[1771053439866,0.01452,68928.0,68924.0,0.014516]
[1771053440274,0.01552,68928.0,68924.0,0.014516]
[1771053441977,0.01452,68928.0,68924.0,0.014516]
[1771053442178,0.01552,68928.0,68924.0,0.014516]
[1771053443183,0.01452,68929.0,68924.0,0.014516]
[1771053443481,0.00752,68929.0,68924.0,0.014516]
[1771053445488,0.00752,68929.0,68925.0,0.014516]
[1771053445692,0.01052,68929.0,68924.0,0.014516]
[1771053446585,0.01752,68929.0,68924.0,0.014516]
[1771053448591,0.01452,68929.0,68924.0,0.014516]
[1771053448995,0.00652,68929.0,68924.0,0.014516]
[1771053449689,0.00352,68929.0,68924.0,0.014516]
[1771053450186,0.00152,68929.0,68924.0,0.014516]
[1771053450388,0.01452,68929.0,68924.0,0.014516]
[1771053455499,0.01452,68929.0,68921.0,0.029037]
[1771053456199,0.014516,68927.0,68921.0,0.01452]
[1771053456401,0.12558629,68925.0,68915.0,0.014518]
[1771053456600,0.014516,68924.0,68916.0,0.01452]
[1771053457201,0.03509783,68921.0,68916.0,0.01452]
[1771053459097,0.03509783,68921.0,68916.0,0.01952]
[1771053468203,0.03509783,68921.0,68916.0,0.02052]
[1771053469899,0.02057983,68921.0,68917.0,0.014518]
[1771053470904,0.02057983,68921.0,68916.0,0.035038]
[1771053471407,0.02057983,68921.0,68917.0,0.021518]
[1771053471706,0.07255131,68921.0,68918.0,0.014517]
[1771053472205,0.07255131,68921.0,68917.0,0.021518]
[1771053472402,0.07255131,68921.0,68917.0,0.014518]
[1771053474108,0.01452,68923.0,68917.0,0.014518]
[1771053474314,0.07254682,68921.0,68917.0,0.014518]
[1771053475010,0.07254682,68921.0,68919.0,0.014517]
[1771053475203,0.0724809,68921.0,68919.0,0.014517]
[1771053476510,0.0724809,68921.0,68918.0,0.021517]
[1771053476511,0.0724809,68921.0,68920.0,0.014517]
[1771053476907,0.01452,68924.0,68920.0,0.014517]
[1771053477213,0.14516,68928.0,68920.0,0.014517]
[1771053477409,0.00910683,68921.0,68920.0,0.014517]
[1771053477614,0.14516,68928.0,68920.0,0.029034]
[1771053477808,0.14516,68928.0,68920.0,0.014517]
[1771053478003,0.03598683,68921.0,68920.0,0.014517]
[1771053478208,0.01452,68924.0,68920.0,0.014517]
[1771053478511,0.06854683,68921.0,68920.0,0.014517]
[1771053478811,0.06854683,68921.0,68920.0,0.023517]
[1771053479209,0.01452,68924.0,68920.0,0.023517]
[1771053479412,0.01452,68924.0,68920.0,0.014517]
[1771053479608,0.14516,68928.0,68921.0,0.014517]
[1771053479808,0.05802983,68921.0,68920.0,0.011]
[1771053480008,0.00702983,68921.0,68920.0,0.012]
[1771053480712,0.00702983,68921.0,68920.0,0.026517]
[1771053481205,0.01452,68924.0,68920.0,0.026517]
[1771053481404,0.07254683,68921.0,68920.0,0.026517]
[1771053481610,0.07254683,68921.0,68920.0,0.014517]
[1771053482305,0.07254683,68921.0,68920.0,0.026517]
[1771053482717,0.05854683,68921.0,68920.0,0.026517]
[1771053483008,0.05854683,68921.0,68920.0,0.012]
[1771053483215,0.01452,68924.0,68920.0,0.012]
[1771053483409,0.147312,68928.0,68920.0,0.012]
[1771053483614,0.07254683,68921.0,68920.0,0.012]
[1771053484614,0.07183683,68921.0,68920.0,0.012]
[1771053484807,0.01394683,68921.0,68920.0,0.012]
[1771053485211,0.01394683,68921.0,68920.0,0.011]
[1771053485403,0.01452,68924.0,68920.0,0.011]
[1771053485607,0.07254683,68921.0,68920.0,0.012]
[1771053485806,0.02293899,68921.0,68920.0,0.012]
[1771053486209,0.01452,68925.0,68921.0,0.014517]
[1771053486609,0.05802982,68921.0,68920.0,0.012]
[1771053486916,0.04867982,68921.0,68920.0,0.026517]
[1771053487119,0.047316,68928.0,68926.0,0.014516]
[1771053487413,0.047316,68928.0,68920.0,0.12664471]
[1771053487414,0.06995888,68938.0,68933.0,0.014514]
[1771053487616,0.01452,68940.0,68936.0,0.014514]
[1771053487804,0.01452,68940.0,68935.0,0.014514]
[1771053488210,0.01452,68940.0,68932.0,0.029034]
[1771053488812,0.031033,68940.0,68932.0,0.01452]
[1771053489219,0.014513,68939.0,68932.0,0.01452]
[1771053490018,0.014513,68939.0,68930.0,0.014515]
[1771053490221,0.014513,68939.0,68931.0,0.01452]
[1771053491015,0.014513,68938.0,68931.0,0.01452]
[1771053493418,0.014513,68939.0,68931.0,0.01452]
[1771053493720,0.014513,68938.0,68931.0,0.01452]
[1771053494924,0.014513,68937.0,68931.0,0.01452]
[1771053496315,0.01452,68940.0,68932.0,0.014515]
[1771053496622,0.01452,68940.0,68933.0,0.014514]
[1771053496924,0.05968,68944.0,68934.0,0.12916471]
[1771053497116,0.05968,68944.0,68937.0,0.014513]
[1771053497317,0.01452,68946.0,68938.0,0.029033]
[1771053497824,0.01452,68946.0,68939.0,0.014513]
[1771053498125,0.01452,68946.0,68938.0,0.029033]
[1771053498421,0.01452,68946.0,68939.0,0.014513]
[1771053498724,0.043542,68948.0,68939.0,0.014513]
[1771053499024,0.029031,68948.0,68938.0,0.029033]
[1771053499323,0.014512,68945.0,68938.0,0.01452]
[1771053501523,0.01452,68948.0,68941.0,0.014512]
[1771053501721,0.01452,68948.0,68944.0,0.014512]
[1771053501927,0.01452,68950.0,68944.0,0.014512]
[1771053502116,0.029031,68950.0,68942.0,0.029024]
[1771053502315,0.029031,68950.0,68942.0,0.014512]
[1771053504525,0.029031,68950.0,68941.0,0.029033]
[1771053505423,0.028041,68950.0,68941.0,0.029033]
[1771053505721,0.01353,68950.0,68941.0,0.029033]
[1771053506024,0.014511,68949.0,68941.0,0.029033]
[1771053506219,0.010561,68949.0,68941.0,0.01452]
[1771053506922,0.01353,68950.0,68941.0,0.029032]
[1771053507122,0.014511,68951.0,68942.0,0.014512]
[1771053507522,0.011421,68951.0,68942.0,0.014512]
[1771053508023,0.010681,68951.0,68942.0,0.014512]
[1771053508620,0.014511,68951.0,68942.0,0.014512]
[1771053508819,0.013781,68951.0,68942.0,0.014512]
[1771053509418,0.018141,68952.0,68942.0,0.014512]
[1771053510021,0.014511,68951.0,68942.0,0.014512]
[1771053510724,0.014511,68950.0,68941.0,0.029033]
[1771053510925,0.01451,68952.0,68941.0,0.029033]
[1771053511420,0.02902,68952.0,68941.0,0.029033]
[1771053511622,0.014511,68951.0,68941.0,0.029033]
[1771053512526,0.01219,68952.0,68943.0,0.014512]
[1771053512715,0.01219,68952.0,68944.0,0.01452]
[1771053512915,0.01059,68952.0,68944.0,0.01452]
[1771053513728,0.00778,68952.0,68944.0,0.029032]